Workbook

Sheet Admin
AA1: Year | AB1: Month
A2: Model | B2: GSlt50kWh | AA2: 1995 | AB2: 1
AA3: 1996 | AB3: 2
A4: Actual | B4: Year | C4: Month | AA4: 1997 | AB4: 3
A5: From Date | B5: 2009 | C5: 1 | AA5: 1998 | AB5: 4
A6: To Date | B6: 2013 | C6: 12 | AA6: 1999 | AB6: 5
AA7: 2000 | AB7: 6
A8: Forecast Term | B8: 2 | C8: Years | AA8: 2001 | AB8: 7
AA9: 2002 | AB9: 8
A10: Forecast | B10: Year | C10: Month | AA10: 2003 | AB10: 9
A11: From Date | B11: 2014 | C11: 1 | E11: Months | AA11: 2004 | AB11: 10
A12: To Date | B12: 2015 | C12: 12 | E12: =MyMonthsCount(B11,C11,B12,C12) -> 24 | AA12: 2005 | AB12: 11
AA13: 2006 | AB13: 12
AA14: 2007
AA15: 2008
AA16: 2009
AA17: 2010
AA18: 2011
AA19: 2012
AA20: 2013
AA21: 2014
AA22: 2015
AA23: 2016
AA24: 2017
AA25: 2018
AA26: 2019
AA27: 2020
AA28: 2021
AA29: 2022
AA30: 2023
AA31: 2024
AA32: 2025
AA33: 2026
AA34: 2027
AA35: 2028
AA36: 2029
AA37: 2030

Sheet Monthly Data
A1: Date | B1: GSlt50kWh | C1: HDD_Lond | D1: CDD_Lond | E1: MonthDays | F1: Shoulder1 | G1: GSltCust
A2: 2009-01-01 | B2: 3760655 | C2: 849.6 | D2: 0 | E2: 31 | F2: 0 | G2: 1674
A3: 2009-02-01 | B3: 3270545 | C3: 612.7 | D3: 0 | E3: 28 | F3: 0 | G3: 1675
A4: 2009-03-01 | B4: 3315389 | C4: 533.3 | D4: 0 | E4: 31 | F4: 1 | G4: 1681
A5: 2009-04-01 | B5: 2905547 | C5: 307 | D5: 3.2 | E5: 30 | F5: 1 | G5: 1684
A6: 2009-05-01 | B6: 2858350 | C6: 156.9 | D6: 3.1 | E6: 31 | F6: 1 | G6: 1685
A7: 2009-06-01 | B7: 2907459 | C7: 49.7 | D7: 35.5 | E7: 30 | F7: 0 | G7: 1685
A8: 2009-07-01 | B8: 3152443 | C8: 20.2 | D8: 29.4 | E8: 31 | F8: 0 | G8: 1685
A9: 2009-08-01 | B9: 3252321 | C9: 17.9 | D9: 71.9 | E9: 31 | F9: 0 | G9: 1685
A10: 2009-09-01 | B10: 2873707 | C10: 71.2 | D10: 15.9 | E10: 30 | F10: 1 | G10: 1685
A11: 2009-10-01 | B11: 2845616 | C11: 301.2 | D11: 0 | E11: 31 | F11: 1 | G11: 1685
A12: 2009-11-01 | B12: 2894664 | C12: 356.7 | D12: 0 | E12: 30 | F12: 1 | G12: 1685
A13: 2009-12-01 | B13: 3352350 | C13: 637.3 | D13: 0 | E13: 31 | F13: 0 | G13: 1674
A14: 2010-01-01 | B14: 3441514 | C14: 733.1 | D14: 0 | E14: 31 | F14: 0 | G14: 1674
A15: 2010-02-01 | B15: 3109778 | C15: 633.4 | D15: 0 | E15: 28 | F15: 0 | G15: 1674
A16: 2010-03-01 | B16: 3063802 | C16: 450.2 | D16: 0 | E16: 31 | F16: 1 | G16: 1674
A17: 2010-04-01 | B17: 2760595 | C17: 236.4 | D17: 0 | E17: 30 | F17: 1 | G17: 1675
A18: 2010-05-01 | B18: 2903907 | C18: 121.1 | D18: 34.9 | E18: 31 | F18: 1 | G18: 1672
A19: 2010-06-01 | B19: 3063123 | C19: 23.6 | D19: 57.5 | E19: 30 | F19: 0 | G19: 1669
A20: 2010-07-01 | B20: 3367995 | C20: 5.6 | D20: 129.7 | E20: 31 | F20: 0 | G20: 1666
A21: 2010-08-01 | B21: 3264268 | C21: 6 | D21: 121.7 | E21: 31 | F21: 0 | G21: 1664
A22: 2010-09-01 | B22: 2788591 | C22: 87.9 | D22: 24.1 | E22: 30 | F22: 1 | G22: 1672
A23: 2010-10-01 | B23: 2730965 | C23: 239.5 | D23: 0 | E23: 31 | F23: 1 | G23: 1668
A24: 2010-11-01 | B24: 2916635 | C24: 413.6 | D24: 0 | E24: 30 | F24: 1 | G24: 1675
A25: 2010-12-01 | B25: 3326888 | C25: 713.5 | D25: 0 | E25: 31 | F25: 0 | G25: 1667
A26: 2011-01-01 | B26: 3480300 | C26: 798.8 | D26: 0 | E26: 31 | F26: 0 | G26: 1665
A27: 2011-02-01 | B27: 3140091 | C27: 677.8 | D27: 0 | E27: 28 | F27: 0 | G27: 1677
A28: 2011-03-01 | B28: 3198659 | C28: 599.6 | D28: 0 | E28: 31 | F28: 1 | G28: 1677
A29: 2011-04-01 | B29: 2806404 | C29: 330.4 | D29: 0 | E29: 30 | F29: 1 | G29: 1675
A30: 2011-05-01 | B30: 2777768 | C30: 126.4 | D30: 17.4 | E30: 31 | F30: 1 | G30: 1674
A31: 2011-06-01 | B31: 2996203 | C31: 27 | D31: 39.6 | E31: 30 | F31: 0 | G31: 1678
A32: 2011-07-01 | B32: 3463081 | C32: 0 | D32: 160.9 | E32: 31 | F32: 0 | G32: 1676
A33: 2011-08-01 | B33: 3314369 | C33: 1.5 | D33: 82.9 | E33: 31 | F33: 0 | G33: 1676
A34: 2011-09-01 | B34: 2758253 | C34: 71.9 | D34: 29 | E34: 30 | F34: 1 | G34: 1673
A35: 2011-10-01 | B35: 2745121 | C35: 234.6 | D35: 0 | E35: 31 | F35: 1 | G35: 1670
A36: 2011-11-01 | B36: 2834235 | C36: 347.9 | D36: 0 | E36: 30 | F36: 1 | G36: 1667
A37: 2011-12-01 | B37: 3149387 | C37: 548.4 | D37: 0 | E37: 31 | F37: 0 | G37: 1664
A38: 2012-01-01 | B38: 3281279 | C38: 644.8 | D38: 0 | E38: 31 | F38: 0 | G38: 1666
A39: 2012-02-01 | B39: 3046678 | C39: 553 | D39: 0 | E39: 29 | F39: 0 | G39: 1667
A40: 2012-03-01 | B40: 2970504 | C40: 331.1 | D40: 2.2 | E40: 31 | F40: 1 | G40: 1667
A41: 2012-04-01 | B41: 2680293 | C41: 334.6 | D41: 0 | E41: 30 | F41: 1 | G41: 1667
A42: 2012-05-01 | B42: 2807502 | C42: 87.2 | D42: 28.5 | E42: 31 | F42: 1 | G42: 1667
A43: 2012-06-01 | B43: 3105876 | C43: 28.2 | D43: 81.7 | E43: 30 | F43: 0 | G43: 1669
A44: 2012-07-01 | B44: 3478171 | C44: 0 | D44: 161 | E44: 31 | F44: 0 | G44: 1654
A45: 2012-08-01 | B45: 3240724 | C45: 7.8 | D45: 79.6 | E45: 31 | F45: 0 | G45: 1660
A46: 2012-09-01 | B46: 2834667 | C46: 103.4 | D46: 27.7 | E46: 30 | F46: 1 | G46: 1651
A47: 2012-10-01 | B47: 2761045 | C47: 250.5 | D47: 0.7 | E47: 31 | F47: 1 | G47: 1659
A48: 2012-11-01 | B48: 2908932 | C48: 420.4 | D48: 0 | E48: 30 | F48: 1 | G48: 1659
A49: 2012-12-01 | B49: 3144594 | C49: 535.9 | D49: 0 | E49: 31 | F49: 0 | G49: 1658
A50: 2013-01-01 | B50: 3333526.67 | C50: 657.4 | D50: 0 | E50: 31 | F50: 0 | G50: 1664
A51: 2013-02-01 | B51: 3075889.31 | C51: 657 | D51: 0 | E51: 28 | F51: 0 | G51: 1663
A52: 2013-03-01 | B52: 3220272.92 | C52: 581.9 | D52: 0 | E52: 31 | F52: 1 | G52: 1663
A53: 2013-04-01 | B53: 2945784.67 | C53: 362.2 | D53: 0 | E53: 30 | F53: 1 | G53: 1693
A54: 2013-05-01 | B54: 3078779.21 | C54: 122.2 | D54: 27 | E54: 31 | F54: 1 | G54: 1713
A55: 2013-06-01 | B55: 3203064.92 | C55: 41.1 | D55: 52.7 | E55: 30 | F55: 0 | G55: 1714
A56: 2013-07-01 | B56: 3624763.52 | C56: 7.1 | D56: 108.8 | E56: 31 | F56: 0 | G56: 1715
A57: 2013-08-01 | B57: 3384970.79 | C57: 18.4 | D57: 57.5 | E57: 31 | F57: 0 | G57: 1716
A58: 2013-09-01 | B58: 3137884.18 | C58: 94.9 | D58: 26 | E58: 30 | F58: 1 | G58: 1718
A59: 2013-10-01 | B59: 3072349.99 | C59: 184 | D59: 2.6 | E59: 31 | F59: 1 | G59: 1719
A60: 2013-11-01 | B60: 3250425.95 | C60: 492.1 | D60: 0 | E60: 30 | F60: 1 | G60: 1721
A61: 2013-12-01 | B61: 3647170.11 | C61: 675.7 | D61: 0 | E61: 31 | F61: 0 | G61: 1720

Sheet OLS Model
A1: Model 1: OLS, using observations 2009:01-2013:12 (T = 60)
A2: Dependent variable: GSlt50kWh
B4: coefficient | C4: std. error | D4: t-ratio | E4: p-value
A5: const | B5: -9137273.019 | C5: 1084773.293 | D5: -8.423209789 | E5: 2.058788707e-11
A6: HDD_Lond | B6: 872.8782869 | C6: 68.13770979 | D6: 12.81050228 | E6: 5.28972108e-18
A7: CDD_Lond | B7: 4766.759458 | C7: 473.9303863 | D7: 10.0579317 | E7: 5.571792149e-14
A8: MonthDays | B8: 77001.91061 | C8: 13125.90785 | D8: 5.86640646 | E8: 2.790290137e-07
A9: Shoulder1 | B9: -166600.1397 | C9: 28628.68738 | D9: -5.819342587 | E9: 3.317307163e-07
A10: GSltCust | B10: 5714.501789 | C10: 606.3929023 | D10: 9.423761009 | E10: 5.353746009e-13
A12: Mean dependent var | B12: 3100435.421 | C12: S.D. dependent var | D12: 257743.265
A13: Sum squared resid | B13: 3.42993107e+11 | C13: S.E. of regression | D13: 79697.70514
A14: R-squared | B14: 0.9124897894 | C14: Adjusted R-squared | D14: 0.9043869921
A15: F(5, 54) | B15: 112.6141699 | C15: P-value(F) | D15: 2.697775925e-27
A16: Log-likelihood | B16: -759.1352608 | C16: Akaike criterion | D16: 1530.270522
A17: Schwarz criterion | B17: 1542.836589 | C17: Hannan-Quinn | D17: 1535.185801
A18: rho | B18: 0.08040286921 | C18: Durbin-Watson | D18: 1.717700966
A19: Theil's U | B19: 0.27629

Sheet Predicted Monthly Data
A1: Date | B1: GSlt50kWh | C1: HDD_Lond | D1: CDD_Lond | E1: MonthDays | F1: Shoulder1 | G1: GSltCust | I1: Const | J1: HDD_Lond | K1: CDD_Lond | L1: MonthDays | M1: Shoulder1 | N1: GSltCust | O1: Predicted Value
A2: 2009-01-01 | B2: 3760655 | C2: 849.6 | D2: 0 | E2: 31 | F2: 0 | G2: 1674 | I2: =const -> -9137273.019 | J2: =HDD_Lond*C2 -> 741597.3926 | K2: =CDD_Lond*D2 -> 0 | L2: =MonthDays*E2 -> 2387059.229 | M2: =Shoulder1*F2 -> 0 | N2: =GSltCust*G2 -> 9566075.995 | O2: =SUM(I2:N2) -> 3557459.596
A3: 2009-02-01 | B3: 3270545 | C3: 612.7 | D3: 0 | E3: 28 | F3: 0 | G3: 1675 | I3: -9137273.019 | J3: 534812.5264 | K3: 0 | L3: 2156053.497 | M3: 0 | N3: 9571790.496 | O3: 3125383.5
A4: 2009-03-01 | B4: 3315389 | C4: 533.3 | D4: 0 | E4: 31 | F4: 1 | G4: 1681 | I4: -9137273.019 | J4: 465505.9904 | K4: 0 | L4: 2387059.229 | M4: -166600.1397 | N4: 9606077.507 | O4: 3154769.567
A5: 2009-04-01 | B5: 2905547 | C5: 307 | D5: 3.2 | E5: 30 | F5: 1 | G5: 1684 | I5: -9137273.019 | J5: 267973.6341 | K5: 15253.63026 | L5: 2310057.318 | M5: -166600.1397 | N5: 9623221.012 | O5: 2912632.436
A6: 2009-05-01 | B6: 2858350 | C6: 156.9 | D6: 3.1 | E6: 31 | F6: 1 | G6: 1685 | I6: -9137273.019 | J6: 136954.6032 | K6: 14776.95432 | L6: 2387059.229 | M6: -166600.1397 | N6: 9628935.514 | O6: 2863853.141
A7: 2009-06-01 | B7: 2907459 | C7: 49.7 | D7: 35.5 | E7: 30 | F7: 0 | G7: 1685 | I7: -9137273.019 | J7: 43382.05086 | K7: 169219.9607 | L7: 2310057.318 | M7: 0 | N7: 9628935.514 | O7: 3014321.825
A8: 2009-07-01 | B8: 3152443 | C8: 20.2 | D8: 29.4 | E8: 31 | F8: 0 | G8: 1685 | I8: -9137273.019 | J8: 17632.1414 | K8: 140142.7281 | L8: 2387059.229 | M8: 0 | N8: 9628935.514 | O8: 3036496.593
A9: 2009-08-01 | B9: 3252321 | C9: 17.9 | D9: 71.9 | E9: 31 | F9: 0 | G9: 1685 | I9: -9137273.019 | J9: 15624.52134 | K9: 342730.005 | L9: 2387059.229 | M9: 0 | N9: 9628935.514 | O9: 3237076.25
A10: 2009-09-01 | B10: 2873707 | C10: 71.2 | D10: 15.9 | E10: 30 | F10: 1 | G10: 1685 | I10: -9137273.019 | J10: 62148.93403 | K10: 75791.47538 | L10: 2310057.318 | M10: -166600.1397 | N10: 9628935.514 | O10: 2773060.083
A11: 2009-10-01 | B11: 2845616 | C11: 301.2 | D11: 0 | E11: 31 | F11: 1 | G11: 1685 | I11: -9137273.019 | J11: 262910.94 | K11: 0 | L11: 2387059.229 | M11: -166600.1397 | N11: 9628935.514 | O11: 2975032.524
A12: 2009-11-01 | B12: 2894664 | C12: 356.7 | D12: 0 | E12: 30 | F12: 1 | G12: 1685 | I12: -9137273.019 | J12: 311355.6849 | K12: 0 | L12: 2310057.318 | M12: -166600.1397 | N12: 9628935.514 | O12: 2946475.358
A13: 2009-12-01 | B13: 3352350 | C13: 637.3 | D13: 0 | E13: 31 | F13: 0 | G13: 1674 | I13: -9137273.019 | J13: 556285.3323 | K13: 0 | L13: 2387059.229 | M13: 0 | N13: 9566075.995 | O13: 3372147.536
A14: 2010-01-01 | B14: 3441514 | C14: 733.1 | D14: 0 | E14: 31 | F14: 0 | G14: 1674 | I14: -9137273.019 | J14: 639907.0721 | K14: 0 | L14: 2387059.229 | M14: 0 | N14: 9566075.995 | O14: 3455769.276
A15: 2010-02-01 | B15: 3109778 | C15: 633.4 | D15: 0 | E15: 28 | F15: 0 | G15: 1674 | I15: -9137273.019 | J15: 552881.1069 | K15: 0 | L15: 2156053.497 | M15: 0 | N15: 9566075.995 | O15: 3137737.579
A16: 2010-03-01 | B16: 3063802 | C16: 450.2 | D16: 0 | E16: 31 | F16: 1 | G16: 1674 | I16: -9137273.019 | J16: 392969.8048 | K16: 0 | L16: 2387059.229 | M16: -166600.1397 | N16: 9566075.995 | O16: 3042231.869
A17: 2010-04-01 | B17: 2760595 | C17: 236.4 | D17: 0 | E17: 30 | F17: 1 | G17: 1675 | I17: -9137273.019 | J17: 206348.427 | K17: 0 | L17: 2310057.318 | M17: -166600.1397 | N17: 9571790.496 | O17: 2784323.082
A18: 2010-05-01 | B18: 2903907 | C18: 121.1 | D18: 34.9 | E18: 31 | F18: 1 | G18: 1672 | I18: -9137273.019 | J18: 105705.5605 | K18: 166359.9051 | L18: 2387059.229 | M18: -166600.1397 | N18: 9554646.991 | O18: 2909898.526
A19: 2010-06-01 | B19: 3063123 | C19: 23.6 | D19: 57.5 | E19: 30 | F19: 0 | G19: 1669 | I19: -9137273.019 | J19: 20599.92757 | K19: 274088.6688 | L19: 2310057.318 | M19: 0 | N19: 9537503.486 | O19: 3004976.381
A20: 2010-07-01 | B20: 3367995 | C20: 5.6 | D20: 129.7 | E20: 31 | F20: 0 | G20: 1666 | I20: -9137273.019 | J20: 4888.118407 | K20: 618248.7016 | L20: 2387059.229 | M20: 0 | N20: 9520359.98 | O20: 3393283.01
A21: 2010-08-01 | B21: 3264268 | C21: 6 | D21: 121.7 | E21: 31 | F21: 0 | G21: 1664 | I21: -9137273.019 | J21: 5237.269722 | K21: 580114.626 | L21: 2387059.229 | M21: 0 | N21: 9508930.977 | O21: 3344069.082
A22: 2010-09-01 | B22: 2788591 | C22: 87.9 | D22: 24.1 | E22: 30 | F22: 1 | G22: 1672 | I22: -9137273.019 | J22: 76726.00142 | K22: 114878.9029 | L22: 2310057.318 | M22: -166600.1397 | N22: 9554646.991 | O22: 2752436.054
A23: 2010-10-01 | B23: 2730965 | C23: 239.5 | D23: 0 | E23: 31 | F23: 1 | G23: 1668 | I23: -9137273.019 | J23: 209054.3497 | K23: 0 | L23: 2387059.229 | M23: -166600.1397 | N23: 9531788.984 | O23: 2824029.403
A24: 2010-11-01 | B24: 2916635 | C24: 413.6 | D24: 0 | E24: 30 | F24: 1 | G24: 1675 | I24: -9137273.019 | J24: 361022.4595 | K24: 0 | L24: 2310057.318 | M24: -166600.1397 | N24: 9571790.496 | O24: 2938997.115
A25: 2010-12-01 | B25: 3326888 | C25: 713.5 | D25: 0 | E25: 31 | F25: 0 | G25: 1667 | I25: -9137273.019 | J25: 622798.6577 | K25: 0 | L25: 2387059.229 | M25: 0 | N25: 9526074.482 | O25: 3398659.349
A26: 2011-01-01 | B26: 3480300 | C26: 798.8 | D26: 0 | E26: 31 | F26: 0 | G26: 1665 | I26: -9137273.019 | J26: 697255.1756 | K26: 0 | L26: 2387059.229 | M26: 0 | N26: 9514645.478 | O26: 3461686.863
A27: 2011-02-01 | B27: 3140091 | C27: 677.8 | D27: 0 | E27: 28 | F27: 0 | G27: 1677 | I27: -9137273.019 | J27: 591636.9029 | K27: 0 | L27: 2156053.497 | M27: 0 | N27: 9583219.5 | O27: 3193636.88
A28: 2011-03-01 | B28: 3198659 | C28: 599.6 | D28: 0 | E28: 31 | F28: 1 | G28: 1677 | I28: -9137273.019 | J28: 523377.8208 | K28: 0 | L28: 2387059.229 | M28: -166600.1397 | N28: 9583219.5 | O28: 3189783.39
A29: 2011-04-01 | B29: 2806404 | C29: 330.4 | D29: 0 | E29: 30 | F29: 1 | G29: 1675 | I29: -9137273.019 | J29: 288398.986 | K29: 0 | L29: 2310057.318 | M29: -166600.1397 | N29: 9571790.496 | O29: 2866373.641
A30: 2011-05-01 | B30: 2777768 | C30: 126.4 | D30: 17.4 | E30: 31 | F30: 1 | G30: 1674 | I30: -9137273.019 | J30: 110331.8155 | K30: 82941.61456 | L30: 2387059.229 | M30: -166600.1397 | N30: 9566075.995 | O30: 2842535.494
A31: 2011-06-01 | B31: 2996203 | C31: 27 | D31: 39.6 | E31: 30 | F31: 0 | G31: 1678 | I31: -9137273.019 | J31: 23567.71375 | K31: 188763.6745 | L31: 2310057.318 | M31: 0 | N31: 9588934.002 | O31: 2974049.689
A32: 2011-07-01 | B32: 3463081 | C32: 0 | D32: 160.9 | E32: 31 | F32: 0 | G32: 1676 | I32: -9137273.019 | J32: 0 | K32: 766971.5967 | L32: 2387059.229 | M32: 0 | N32: 9577504.998 | O32: 3594262.804
A33: 2011-08-01 | B33: 3314369 | C33: 1.5 | D33: 82.9 | E33: 31 | F33: 0 | G33: 1676 | I33: -9137273.019 | J33: 1309.31743 | K33: 395164.359 | L33: 2387059.229 | M33: 0 | N33: 9577504.998 | O33: 3223764.884
A34: 2011-09-01 | B34: 2758253 | C34: 71.9 | D34: 29 | E34: 30 | F34: 1 | G34: 1673 | I34: =const -> -9137273.019 | J34: =HDD_Lond*C34 -> 62759.94883 | K34: =CDD_Lond*D34 -> 138236.0243 | L34: =MonthDays*E34 -> 2310057.318 | M34: =Shoulder1*F34 -> -166600.1397 | N34: =GSltCust*G34 -> 9560361.493 | O34: =SUM(I34:N34) -> 2767541.625
A35: 2011-10-01 | B35: 2745121 | C35: 234.6 | D35: 0 | E35: 31 | F35: 1 | G35: 1670 | I35: -9137273.019 | J35: 204777.2461 | K35: 0 | L35: 2387059.229 | M35: -166600.1397 | N35: 9543217.987 | O35: 2831181.303
A36: 2011-11-01 | B36: 2834235 | C36: 347.9 | D36: 0 | E36: 30 | F36: 1 | G36: 1667 | I36: -9137273.019 | J36: 303674.356 | K36: 0 | L36: 2310057.318 | M36: -166600.1397 | N36: 9526074.482 | O36: 2835932.997
A37: 2011-12-01 | B37: 3149387 | C37: 548.4 | D37: 0 | E37: 31 | F37: 0 | G37: 1664 | I37: -9137273.019 | J37: 478686.4525 | K37: 0 | L37: 2387059.229 | M37: 0 | N37: 9508930.977 | O37: 3237403.639
A38: 2012-01-01 | B38: 3281279 | C38: 644.8 | D38: 0 | E38: 31 | F38: 0 | G38: 1666 | I38: -9137273.019 | J38: 562831.9194 | K38: 0 | L38: 2387059.229 | M38: 0 | N38: 9520359.98 | O38: 3332978.109
A39: 2012-02-01 | B39: 3046678 | C39: 553 | D39: 0 | E39: 29 | F39: 0 | G39: 1667 | I39: -9137273.019 | J39: 482701.6927 | K39: 0 | L39: 2233055.408 | M39: 0 | N39: 9526074.482 | O39: 3104558.563
A40: 2012-03-01 | B40: 2970504 | C40: 331.1 | D40: 2.2 | E40: 31 | F40: 1 | G40: 1667 | I40: -9137273.019 | J40: 289010.0008 | K40: 10486.87081 | L40: 2387059.229 | M40: -166600.1397 | N40: 9526074.482 | O40: 2908757.423
A41: 2012-04-01 | B41: 2680293 | C41: 334.6 | D41: 0 | E41: 30 | F41: 1 | G41: 1667 | I41: -9137273.019 | J41: 292065.0748 | K41: 0 | L41: 2310057.318 | M41: -166600.1397 | N41: 9526074.482 | O41: 2824323.716
A42: 2012-05-01 | B42: 2807502 | C42: 87.2 | D42: 28.5 | E42: 31 | F42: 1 | G42: 1667 | I42: -9137273.019 | J42: 76114.98662 | K42: 135852.6445 | L42: 2387059.229 | M42: -166600.1397 | N42: 9526074.482 | O42: 2821228.183
A43: 2012-06-01 | B43: 3105876 | C43: 28.2 | D43: 81.7 | E43: 30 | F43: 0 | G43: 1669 | I43: -9137273.019 | J43: 24615.16769 | K43: 389444.2477 | L43: 2310057.318 | M43: 0 | N43: 9537503.486 | O43: 3124347.2
A44: 2012-07-01 | B44: 3478171 | C44: 0 | D44: 161 | E44: 31 | F44: 0 | G44: 1654 | I44: -9137273.019 | J44: 0 | K44: 767448.2727 | L44: 2387059.229 | M44: 0 | N44: 9451785.959 | O44: 3469020.441
A45: 2012-08-01 | B45: 3240724 | C45: 7.8 | D45: 79.6 | E45: 31 | F45: 0 | G45: 1660 | I45: -9137273.019 | J45: 6808.450638 | K45: 379434.0528 | L45: 2387059.229 | M45: 0 | N45: 9486072.97 | O45: 3122101.682
A46: 2012-09-01 | B46: 2834667 | C46: 103.4 | D46: 27.7 | E46: 30 | F46: 1 | G46: 1651 | I46: -9137273.019 | J46: 90255.61487 | K46: 132039.237 | L46: 2310057.318 | M46: -166600.1397 | N46: 9434642.453 | O46: 2663121.464
A47: 2012-10-01 | B47: 2761045 | C47: 250.5 | D47: 0.7 | E47: 31 | F47: 1 | G47: 1659 | I47: -9137273.019 | J47: 218656.0109 | K47: 3336.73162 | L47: 2387059.229 | M47: -166600.1397 | N47: 9480358.468 | O47: 2785537.28
A48: 2012-11-01 | B48: 2908932 | C48: 420.4 | D48: 0 | E48: 30 | F48: 1 | G48: 1659 | I48: -9137273.019 | J48: 366958.0318 | K48: 0 | L48: 2310057.318 | M48: -166600.1397 | N48: 9480358.468 | O48: 2853500.659
A49: 2012-12-01 | B49: 3144594 | C49: 535.9 | D49: 0 | E49: 31 | F49: 0 | G49: 1658 | I49: -9137273.019 | J49: 467775.474 | K49: 0 | L49: 2387059.229 | M49: 0 | N49: 9474643.966 | O49: 3192205.649
A50: 2013-01-01 | B50: 3333526.67 | C50: 657.4 | D50: 0 | E50: 31 | F50: 0 | G50: 1664 | I50: -9137273.019 | J50: 573830.1858 | K50: 0 | L50: 2387059.229 | M50: 0 | N50: 9508930.977 | O50: 3332547.372
A51: 2013-02-01 | B51: 3075889.31 | C51: 657 | D51: 0 | E51: 28 | F51: 0 | G51: 1663 | I51: -9137273.019 | J51: 573481.0345 | K51: 0 | L51: 2156053.497 | M51: 0 | N51: 9503216.475 | O51: 3095477.987
A52: 2013-03-01 | B52: 3220272.92 | C52: 581.9 | D52: 0 | E52: 31 | F52: 1 | G52: 1663 | I52: -9137273.019 | J52: 507927.8752 | K52: 0 | L52: 2387059.229 | M52: -166600.1397 | N52: 9503216.475 | O52: 3094330.42
A53: 2013-04-01 | B53: 2945784.67 | C53: 362.2 | D53: 0 | E53: 30 | F53: 1 | G53: 1693 | I53: -9137273.019 | J53: 316156.5155 | K53: 0 | L53: 2310057.318 | M53: -166600.1397 | N53: 9674651.529 | O53: 2996992.203
A54: 2013-05-01 | B54: 3078779.21 | C54: 122.2 | D54: 27 | E54: 31 | F54: 1 | G54: 1713 | I54: -9137273.019 | J54: 106665.7267 | K54: 128702.5054 | L54: 2387059.229 | M54: -166600.1397 | N54: 9788941.564 | O54: 3107495.866
A55: 2013-06-01 | B55: 3203064.92 | C55: 41.1 | D55: 52.7 | E55: 30 | F55: 0 | G55: 1714 | I55: -9137273.019 | J55: 35875.29759 | K55: 251208.2234 | L55: 2310057.318 | M55: 0 | N55: 9794656.066 | O55: 3254523.886
A56: 2013-07-01 | B56: 3624763.52 | C56: 7.1 | D56: 108.8 | E56: 31 | F56: 0 | G56: 1715 | I56: -9137273.019 | J56: 6197.435837 | K56: 518623.429 | L56: 2387059.229 | M56: 0 | N56: 9800370.568 | O56: 3574977.642
A57: 2013-08-01 | B57: 3384970.79 | C57: 18.4 | D57: 57.5 | E57: 31 | F57: 0 | G57: 1716 | I57: -9137273.019 | J57: 16060.96048 | K57: 274088.6688 | L57: 2387059.229 | M57: 0 | N57: 9806085.07 | O57: 3346020.908
A58: 2013-09-01 | B58: 3137884.18 | C58: 94.9 | D58: 26 | E58: 30 | F58: 1 | G58: 1718 | I58: -9137273.019 | J58: 82836.14943 | K58: 123935.7459 | L58: 2310057.318 | M58: -166600.1397 | N58: 9817514.073 | O58: 3030470.128
A59: 2013-10-01 | B59: 3072349.99 | C59: 184 | D59: 2.6 | E59: 31 | F59: 1 | G59: 1719 | I59: -9137273.019 | J59: 160609.6048 | K59: 12393.57459 | L59: 2387059.229 | M59: -166600.1397 | N59: 9823228.575 | O59: 3079417.824
A60: 2013-11-01 | B60: 3250425.95 | C60: 492.1 | D60: 0 | E60: 30 | F60: 1 | G60: 1721 | I60: -9137273.019 | J60: 429543.405 | K60: 0 | L60: 2310057.318 | M60: -166600.1397 | N60: 9834657.579 | O60: 3270385.143
A61: 2013-12-01 | B61: 3647170.11 | C61: 675.7 | D61: 0 | E61: 31 | F61: 0 | G61: 1720 | I61: -9137273.019 | J61: 589803.8585 | K61: 0 | L61: 2387059.229 | M61: 0 | N61: 9828943.077 | O61: 3668533.145

Sheet Predicted Monthly Data Summ
A1: Date | B1: Year | C1: GSlt50kWh | D1: Predicted Value | E1: Absolute % Error
A2: 2009-01-01 | B2: =YEAR(A2) -> 2009 | C2: 3760655 | D2: 3557459.596 | E2: =ABS(D2-C2)/C2 -> 0.05403191825
A3: 2009-02-01 | B3: 2009 | C3: 3270545 | D3: 3125383.5 | E3: 0.04438449852
A4: 2009-03-01 | B4: 2009 | C4: 3315389 | D4: 3154769.567 | E4: 0.0484466326
A5: 2009-04-01 | B5: 2009 | C5: 2905547 | D5: 2912632.436 | E5: 0.002438589323
A6: 2009-05-01 | B6: 2009 | C6: 2858350 | D6: 2863853.141 | E6: 0.001925286082
A7: 2009-06-01 | B7: 2009 | C7: 2907459 | D7: 3014321.825 | E7: 0.0367547142
A8: 2009-07-01 | B8: 2009 | C8: 3152443 | D8: 3036496.593 | E8: 0.03677985834
A9: 2009-08-01 | B9: 2009 | C9: 3252321 | D9: 3237076.25 | E9: 0.004687344842
A10: 2009-09-01 | B10: 2009 | C10: 2873707 | D10: 2773060.083 | E10: 0.03502337478
A11: 2009-10-01 | B11: 2009 | C11: 2845616 | D11: 2975032.524 | E11: 0.04547926493
A12: 2009-11-01 | B12: 2009 | C12: 2894664 | D12: 2946475.358 | E12: 0.01789891962
A13: 2009-12-01 | B13: 2009 | C13: 3352350 | D13: 3372147.536 | E13: 0.005905569579
A14: 2010-01-01 | B14: 2010 | C14: 3441514 | D14: 3455769.276 | E14: 0.004142152571
A15: 2010-02-01 | B15: 2010 | C15: 3109778 | D15: 3137737.579 | E15: 0.008990860132
A16: 2010-03-01 | B16: 2010 | C16: 3063802 | D16: 3042231.869 | E16: 0.007040314932
A17: 2010-04-01 | B17: 2010 | C17: 2760595 | D17: 2784323.082 | E17: 0.008595278362
A18: 2010-05-01 | B18: 2010 | C18: 2903907 | D18: 2909898.526 | E18: 0.002063263836
A19: 2010-06-01 | B19: 2010 | C19: 3063123 | D19: 3004976.381 | E19: 0.01898278954
A20: 2010-07-01 | B20: 2010 | C20: 3367995 | D20: 3393283.01 | E20: 0.007508327556
A21: 2010-08-01 | B21: 2010 | C21: 3264268 | D21: 3344069.082 | E21: 0.02444685355
A22: 2010-09-01 | B22: 2010 | C22: 2788591 | D22: 2752436.054 | E22: 0.01296530957
A23: 2010-10-01 | B23: 2010 | C23: 2730965 | D23: 2824029.403 | E23: 0.03407747929
A24: 2010-11-01 | B24: 2010 | C24: 2916635 | D24: 2938997.115 | E24: 0.00766709407
A25: 2010-12-01 | B25: 2010 | C25: 3326888 | D25: 3398659.349 | E25: 0.02157311852
A26: 2011-01-01 | B26: 2011 | C26: 3480300 | D26: 3461686.863 | E26: 0.00534814142
A27: 2011-02-01 | B27: 2011 | C27: 3140091 | D27: 3193636.88 | E27: 0.01705233394
A28: 2011-03-01 | B28: 2011 | C28: 3198659 | D28: 3189783.39 | E28: 0.002774790791
A29: 2011-04-01 | B29: 2011 | C29: 2806404 | D29: 2866373.641 | E29: 0.02136885546
A30: 2011-05-01 | B30: 2011 | C30: 2777768 | D30: 2842535.494 | E30: 0.02331638002
A31: 2011-06-01 | B31: 2011 | C31: 2996203 | D31: 2974049.689 | E31: 0.007393795167
A32: 2011-07-01 | B32: 2011 | C32: 3463081 | D32: 3594262.804 | E32: 0.03788008546
A33: 2011-08-01 | B33: 2011 | C33: 3314369 | D33: 3223764.884 | E33: 0.02733676185
A34: 2011-09-01 | B34: =YEAR(A34) -> 2011 | C34: 2758253 | D34: 2767541.625 | E34: =ABS(D34-C34)/C34 -> 0.003367575405
A35: 2011-10-01 | B35: 2011 | C35: 2745121 | D35: 2831181.303 | E35: 0.03135027681
A36: 2011-11-01 | B36: 2011 | C36: 2834235 | D36: 2835932.997 | E36: 0.0005991024563
A37: 2011-12-01 | B37: 2011 | C37: 3149387 | D37: 3237403.639 | E37: 0.02794722864
A38: 2012-01-01 | B38: 2012 | C38: 3281279 | D38: 3332978.109 | E38: 0.01575577969
A39: 2012-02-01 | B39: 2012 | C39: 3046678 | D39: 3104558.563 | E39: 0.01899792589
A40: 2012-03-01 | B40: 2012 | C40: 2970504 | D40: 2908757.423 | E40: 0.02078656573
A41: 2012-04-01 | B41: 2012 | C41: 2680293 | D41: 2824323.716 | E41: 0.05373692948
A42: 2012-05-01 | B42: 2012 | C42: 2807502 | D42: 2821228.183 | E42: 0.004889108858
A43: 2012-06-01 | B43: 2012 | C43: 3105876 | D43: 3124347.2 | E43: 0.00594717875
A44: 2012-07-01 | B44: 2012 | C44: 3478171 | D44: 3469020.441 | E44: 0.00263085374
A45: 2012-08-01 | B45: 2012 | C45: 3240724 | D45: 3122101.682 | E45: 0.03660364711
A46: 2012-09-01 | B46: 2012 | C46: 2834667 | D46: 2663121.464 | E46: 0.06051699746
A47: 2012-10-01 | B47: 2012 | C47: 2761045 | D47: 2785537.28 | E47: 0.008870655828
A48: 2012-11-01 | B48: 2012 | C48: 2908932 | D48: 2853500.659 | E48: 0.0190555645
A49: 2012-12-01 | B49: 2012 | C49: 3144594 | D49: 3192205.649 | E49: 0.01514079378
A50: 2013-01-01 | B50: 2013 | C50: 3333526.67 | D50: 3332547.372 | E50: 0.0002937724044
A51: 2013-02-01 | B51: 2013 | C51: 3075889.31 | D51: 3095477.987 | E51: 0.006368459642
A52: 2013-03-01 | B52: 2013 | C52: 3220272.92 | D52: 3094330.42 | E52: 0.03910926291
A53: 2013-04-01 | B53: 2013 | C53: 2945784.67 | D53: 2996992.203 | E53: 0.01738332529
A54: 2013-05-01 | B54: 2013 | C54: 3078779.21 | D54: 3107495.866 | E54: 0.009327286591
A55: 2013-06-01 | B55: 2013 | C55: 3203064.92 | D55: 3254523.886 | E55: 0.01606553946
A56: 2013-07-01 | B56: 2013 | C56: 3624763.52 | D56: 3574977.642 | E56: 0.0137349313
A57: 2013-08-01 | B57: 2013 | C57: 3384970.79 | D57: 3346020.908 | E57: 0.0115067113
A58: 2013-09-01 | B58: 2013 | C58: 3137884.18 | D58: 3030470.128 | E58: 0.03423136297
A59: 2013-10-01 | B59: 2013 | C59: 3072349.99 | D59: 3079417.824 | E59: 0.00230046517
A60: 2013-11-01 | B60: 2013 | C60: 3250425.95 | D60: 3270385.143 | E60: 0.006140485287
A61: 2013-12-01 | B61: 2013 | C61: 3647170.11 | D61: 3668533.145 | E61: 0.00585742755
E62: =AVERAGE(E2:E61) -> 0.01871325285

Sheet PredictedAnnualDataSumm
A2: Annual Predicted vs. Actual GSlt50kWh
B3: GSlt50kWh | C3: Predicted Value | D3: Absolute % Error
A4: 2009 | B4: 37389046 | C4: 36968708.41 | D4: 0.01124226571
A5: 2010 | B5: 36738061 | C5: 36986410.73 | D5: 0.006760011824
A6: 2011 | B6: 36663871 | C6: 37018153.21 | D6: 0.009662978871
A7: 2012 | B7: 36260265 | C7: 36201680.37 | D7: 0.001615670235
A8: 2013 | B8: 38974882.24 | C8: 38851172.52 | D8: 0.003174088275
C9: Mean Absolute Percentage Error (Annual) | D9: =AVERAGE(D4:D8) -> 0.006491002984
C10: Mean Absolute Percentage Error (Monthly) | D10: 0.01871325285

Sheet PredictedAnnualDataSumm2
B3: GSlt50kWh | C3: Predicted Value
A4: 2009 | B4: 37389046 | C4: 36968708.41
A5: 2010 | B5: 36738061 | C5: 36986410.73
A6: 2011 | B6: 36663871 | C6: 37018153.21
A7: 2012 | B7: 36260265 | C7: 36201680.37
A8: 2013 | B8: 38974882.24 | C8: 38851172.52

Sheet Normalized Monthly Data
A1: Date | B1: GSlt50kWh | C1: HDD_Lond | D1: CDD_Lond | E1: MonthDays | F1: Shoulder1 | G1: GSltCust | I1: Const | J1: HDD_Lond | K1: CDD_Lond | L1: MonthDays | M1: Shoulder1 | N1: GSltCust | O1: Normalized Value
A2: 2009-01-01 | B2: 3760655 | C2: 716.23 | D2: 0 | E2: 31 | F2: 0 | G2: 1674 | I2: =const -> -9137273.019 | J2: =HDD_Lond*C2 -> 625181.6154 | K2: =CDD_Lond*D2 -> 0 | L2: =MonthDays*E2 -> 2387059.229 | M2: =Shoulder1*F2 -> 0 | N2: =GSltCust*G2 -> 9566075.995 | O2: =SUM(I2:N2) -> 3441043.819
A3: 2009-02-01 | B3: 3270545 | C3: 650.25 | D3: 0 | E3: 28 | F3: 0 | G3: 1675 | I3: =const -> -9137273.019 | J3: =HDD_Lond*C3 -> 567589.1061 | K3: =CDD_Lond*D3 -> 0 | L3: =MonthDays*E3 -> 2156053.497 | M3: =Shoulder1*F3 -> 0 | N3: =GSltCust*G3 -> 9571790.496 | O3: 3158160.08
A4: 2009-03-01 | B4: 3315389 | C4: 533.91 | D4: 0.22 | E4: 31 | F4: 1 | G4: 1681 | I4: =const -> -9137273.019 | J4: =HDD_Lond*C4 -> 466038.4462 | K4: =CDD_Lond*D4 -> 1048.687081 | L4: =MonthDays*E4 -> 2387059.229 | M4: =Shoulder1*F4 -> -166600.1397 | N4: =GSltCust*G4 -> 9606077.507 | O4: 3156350.71
A5: 2009-04-01 | B5: 2905547 | C5: 312.88 | D5: 0.32 | E5: 30 | F5: 1 | G5: 1684 | I5: =const -> -9137273.019 | J5: =HDD_Lond*C5 -> 273106.1584 | K5: =CDD_Lond*D5 -> 1525.363026 | L5: =MonthDays*E5 -> 2310057.318 | M5: =Shoulder1*F5 -> -166600.1397 | N5: =GSltCust*G5 -> 9623221.012 | O5: 2904036.693
A6: 2009-05-01 | B6: 2858350 | C6: 145.96 | D6: 16.98 | E6: 31 | F6: 1 | G6: 1685 | I6: =const -> -9137273.019 | J6: =HDD_Lond*C6 -> 127405.3148 | K6: =CDD_Lond*D6 -> 80939.57559 | L6: =MonthDays*E6 -> 2387059.229 | M6: =Shoulder1*F6 -> -166600.1397 | N6: =GSltCust*G6 -> 9628935.514 | O6: 2920466.474
A7: 2009-06-01 | B7: 2907459 | C7: 30.95 | D7: 59.64 | E7: 30 | F7: 0 | G7: 1685 | I7: =const -> -9137273.019 | J7: =HDD_Lond*C7 -> 27015.58298 | K7: =CDD_Lond*D7 -> 284289.5341 | L7: =MonthDays*E7 -> 2310057.318 | M7: =Shoulder1*F7 -> 0 | N7: =GSltCust*G7 -> 9628935.514 | O7: 3113024.93
A8: 2009-07-01 | B8: 3152443 | C8: 6 | D8: 109.95 | E8: 31 | F8: 0 | G8: 1685 | I8: =const -> -9137273.019 | J8: =HDD_Lond*C8 -> 5237.269722 | K8: =CDD_Lond*D8 -> 524105.2024 | L8: =MonthDays*E8 -> 2387059.229 | M8: =Shoulder1*F8 -> 0 | N8: =GSltCust*G8 -> 9628935.514 | O8: 3408064.196
A9: 2009-08-01 | B9: 3252321 | C9: 11.72 | D9: 76.85 | E9: 31 | F9: 0 | G9: 1685 | I9: =const -> -9137273.019 | J9: =HDD_Lond*C9 -> 10230.13352 | K9: =CDD_Lond*D9 -> 366325.4643 | L9: =MonthDays*E9 -> 2387059.229 | M9: =Shoulder1*F9 -> 0 | N9: =GSltCust*G9 -> 9628935.514 | O9: 3255277.321
A10: 2009-09-01 | B10: 2873707 | C10: 72.85 | D10: 24.35 | E10: 30 | F10: 1 | G10: 1685 | I10: =const -> -9137273.019 | J10: =HDD_Lond*C10 -> 63589.1832 | K10: =CDD_Lond*D10 -> 116070.5928 | L10: =MonthDays*E10 -> 2310057.318 | M10: =Shoulder1*F10 -> -166600.1397 | N10: =GSltCust*G10 -> 9628935.514 | O10: 2814779.449
A11: 2009-10-01 | B11: 2845616 | C11: 241.64 | D11: 3.42 | E11: 31 | F11: 1 | G11: 1685 | I11: =const -> -9137273.019 | J11: =HDD_Lond*C11 -> 210922.3093 | K11: =CDD_Lond*D11 -> 16302.31734 | L11: =MonthDays*E11 -> 2387059.229 | M11: =Shoulder1*F11 -> -166600.1397 | N11: =GSltCust*G11 -> 9628935.514 | O11: 2939346.211
A12: 2009-11-01 | B12: 2894664 | C12: 414.34 | D12: 0 | E12: 30 | F12: 1 | G12: 1685 | I12: =const -> -9137273.019 | J12: =HDD_Lond*C12 -> 361668.3894 | K12: =CDD_Lond*D12 -> 0 | L12: =MonthDays*E12 -> 2310057.318 | M12: =Shoulder1*F12 -> -166600.1397 | N12: =GSltCust*G12 -> 9628935.514 | O12: 2996788.063
A13: 2009-12-01 | B13: 3352350 | C13: 630.9 | D13: 0 | E13: 31 | F13: 0 | G13: 1674 | I13: =const -> -9137273.019 | J13: =HDD_Lond*C13 -> 550698.9112 | K13: =CDD_Lond*D13 -> 0 | L13: =MonthDays*E13 -> 2387059.229 | M13: =Shoulder1*F13 -> 0 | N13: =GSltCust*G13 -> 9566075.995 | O13: 3366561.115
A14: 2010-01-01 | B14: 3441514 | C14: 716.23 | D14: 0 | E14: 31 | F14: 0 | G14: 1674 | I14: =const -> -9137273.019 | J14: =HDD_Lond*C14 -> 625181.6154 | K14: =CDD_Lond*D14 -> 0 | L14: =MonthDays*E14 -> 2387059.229 | M14: =Shoulder1*F14 -> 0 | N14: =GSltCust*G14 -> 9566075.995 | O14: 3441043.819
A15: 2010-02-01 | B15: 3109778 | C15: 650.25 | D15: 0 | E15: 28 | F15: 0 | G15: 1674 | I15: =const -> -9137273.019 | J15: =HDD_Lond*C15 -> 567589.1061 | K15: =CDD_Lond*D15 -> 0 | L15: =MonthDays*E15 -> 2156053.497 | M15: =Shoulder1*F15 -> 0 | N15: =GSltCust*G15 -> 9566075.995 | O15: 3152445.578
A16: 2010-03-01 | B16: 3063802 | C16: 533.91 | D16: 0.22 | E16: 31 | F16: 1 | G16: 1674 | I16: =const -> -9137273.019 | J16: =HDD_Lond*C16 -> 466038.4462 | K16: =CDD_Lond*D16 -> 1048.687081 | L16: =MonthDays*E16 -> 2387059.229 | M16: =Shoulder1*F16 -> -166600.1397 | N16: =GSltCust*G16 -> 9566075.995 | O16: 3116349.198
A17: 2010-04-01 | B17: 2760595 | C17: 312.88 | D17: 0.32 | E17: 30 | F17: 1 | G17: 1675 | I17: =const -> -9137273.019 | J17: =HDD_Lond*C17 -> 273106.1584 | K17: =CDD_Lond*D17 -> 1525.363026 | L17: =MonthDays*E17 -> 2310057.318 | M17: =Shoulder1*F17 -> -166600.1397 | N17: =GSltCust*G17 -> 9571790.496 | O17: 2852606.177
A18: 2010-05-01 | B18: 2903907 | C18: 145.96 | D18: 16.98 | E18: 31 | F18: 1 | G18: 1672 | I18: =const -> -9137273.019 | J18: =HDD_Lond*C18 -> 127405.3148 | K18: =CDD_Lond*D18 -> 80939.57559 | L18: =MonthDays*E18 -> 2387059.229 | M18: =Shoulder1*F18 -> -166600.1397 | N18: =GSltCust*G18 -> 9554646.991 | O18: 2846177.951
A19: 2010-06-01 | B19: 3063123 | C19: 30.95 | D19: 59.64 | E19: 30 | F19: 0 | G19: 1669 | I19: =const -> -9137273.019 | J19: =HDD_Lond*C19 -> 27015.58298 | K19: =CDD_Lond*D19 -> 284289.5341 | L19: =MonthDays*E19 -> 2310057.318 | M19: =Shoulder1*F19 -> 0 | N19: =GSltCust*G19 -> 9537503.486 | O19: 3021592.901
A20: 2010-07-01 | B20: 3367995 | C20: 6 | D20: 109.95 | E20: 31 | F20: 0 | G20: 1666 | I20: =const -> -9137273.019 | J20: =HDD_Lond*C20 -> 5237.269722 | K20: =CDD_Lond*D20 -> 524105.2024 | L20: =MonthDays*E20 -> 2387059.229 | M20: =Shoulder1*F20 -> 0 | N20: =GSltCust*G20 -> 9520359.98 | O20: 3299488.662
A21: 2010-08-01 | B21: 3264268 | C21: 11.72 | D21: 76.85 | E21: 31 | F21: 0 | G21: 1664 | I21: =const -> -9137273.019 | J21: =HDD_Lond*C21 -> 10230.13352 | K21: =CDD_Lond*D21 -> 366325.4643 | L21: =MonthDays*E21 -> 2387059.229 | M21: =Shoulder1*F21 -> 0 | N21: =GSltCust*G21 -> 9508930.977 | O21: 3135272.784
A22: 2010-09-01 | B22: 2788591 | C22: 72.85 | D22: 24.35 | E22: 30 | F22: 1 | G22: 1672 | I22: =const -> -9137273.019 | J22: =HDD_Lond*C22 -> 63589.1832 | K22: =CDD_Lond*D22 -> 116070.5928 | L22: =MonthDays*E22 -> 2310057.318 | M22: =Shoulder1*F22 -> -166600.1397 | N22: =GSltCust*G22 -> 9554646.991 | O22: 2740490.926
A23: 2010-10-01 | B23: 2730965 | C23: 241.64 | D23: 3.42 | E23: 31 | F23: 1 | G23: 1668 | I23: =const -> -9137273.019 | J23: =HDD_Lond*C23 -> 210922.3093 | K23: =CDD_Lond*D23 -> 16302.31734 | L23: =MonthDays*E23 -> 2387059.229 | M23: =Shoulder1*F23 -> -166600.1397 | N23: =GSltCust*G23 -> 9531788.984 | O23: 2842199.68
A24: 2010-11-01 | B24: 2916635 | C24: 414.34 | D24: 0 | E24: 30 | F24: 1 | G24: 1675 | I24: =const -> -9137273.019 | J24: =HDD_Lond*C24 -> 361668.3894 | K24: =CDD_Lond*D24 -> 0 | L24: =MonthDays*E24 -> 2310057.318 | M24: =Shoulder1*F24 -> -166600.1397 | N24: =GSltCust*G24 -> 9571790.496 | O24: 2939643.045
A25: 2010-12-01 | B25: 3326888 | C25: 630.9 | D25: 0 | E25: 31 | F25: 0 | G25: 1667 | I25: =const -> -9137273.019 | J25: =HDD_Lond*C25 -> 550698.9112 | K25: =CDD_Lond*D25 -> 0 | L25: =MonthDays*E25 -> 2387059.229 | M25: =Shoulder1*F25 -> 0 | N25: =GSltCust*G25 -> 9526074.482 | O25: 3326559.603
A26: 2011-01-01 | B26: 3480300 | C26: 716.23 | D26: 0 | E26: 31 | F26: 0 | G26: 1665 | I26: =const -> -9137273.019 | J26: =HDD_Lond*C26 -> 625181.6154 | K26: =CDD_Lond*D26 -> 0 | L26: =MonthDays*E26 -> 2387059.229 | M26: =Shoulder1*F26 -> 0 | N26: =GSltCust*G26 -> 9514645.478 | O26: 3389613.303
A27: 2011-02-01 | B27: 3140091 | C27: 650.25 | D27: 0 | E27: 28 | F27: 0 | G27: 1677 | I27: =const -> -9137273.019 | J27: =HDD_Lond*C27 -> 567589.1061 | K27: =CDD_Lond*D27 -> 0 | L27: =MonthDays*E27 -> 2156053.497 | M27: =Shoulder1*F27 -> 0 | N27: =GSltCust*G27 -> 9583219.5 | O27: 3169589.084
A28: 2011-03-01 | B28: 3198659 | C28: 533.91 | D28: 0.22 | E28: 31 | F28: 1 | G28: 1677 | I28: =const -> -9137273.019 | J28: =HDD_Lond*C28 -> 466038.4462 | K28: =CDD_Lond*D28 -> 1048.687081 | L28: =MonthDays*E28 -> 2387059.229 | M28: =Shoulder1*F28 -> -166600.1397 | N28: =GSltCust*G28 -> 9583219.5 | O28: 3133492.703
A29: 2011-04-01 | B29: 2806404 | C29: 312.88 | D29: 0.32 | E29: 30 | F29: 1 | G29: 1675 | I29: =const -> -9137273.019 | J29: =HDD_Lond*C29 -> 273106.1584 | K29: =CDD_Lond*D29 -> 1525.363026 | L29: =MonthDays*E29 -> 2310057.318 | M29: =Shoulder1*F29 -> -166600.1397 | N29: =GSltCust*G29 -> 9571790.496 | O29: 2852606.177
A30: 2011-05-01 | B30: 2777768 | C30: 145.96 | D30: 16.98 | E30: 31 | F30: 1 | G30: 1674 | I30: =const -> -9137273.019 | J30: =HDD_Lond*C30 -> 127405.3148 | K30: =CDD_Lond*D30 -> 80939.57559 | L30: =MonthDays*E30 -> 2387059.229 | M30: =Shoulder1*F30 -> -166600.1397 | N30: =GSltCust*G30 -> 9566075.995 | O30: 2857606.955
A31: 2011-06-01 | B31: 2996203 | C31: 30.95 | D31: 59.64 | E31: 30 | F31: 0 | G31: 1678 | I31: =const -> -9137273.019 | J31: =HDD_Lond*C31 -> 27015.58298 | K31: =CDD_Lond*D31 -> 284289.5341 | L31: =MonthDays*E31 -> 2310057.318 | M31: =Shoulder1*F31 -> 0 | N31: =GSltCust*G31 -> 9588934.002 | O31: 3073023.418
A32: 2011-07-01 | B32: 3463081 | C32: 6 | D32: 109.95 | E32: 31 | F32: 0 | G32: 1676 | I32: =const -> -9137273.019 | J32: =HDD_Lond*C32 -> 5237.269722 | K32: =CDD_Lond*D32 -> 524105.2024 | L32: =MonthDays*E32 -> 2387059.229 | M32: =Shoulder1*F32 -> 0 | N32: =GSltCust*G32 -> 9577504.998 | O32: 3356633.68
A33: 2011-08-01 | B33: 3314369 | C33: 11.72 | D33: 76.85 | E33: 31 | F33: 0 | G33: 1676 | I33: =const -> -9137273.019 | J33: =HDD_Lond*C33 -> 10230.13352 | K33: =CDD_Lond*D33 -> 366325.4643 | L33: =MonthDays*E33 -> 2387059.229 | M33: =Shoulder1*F33 -> 0 | N33: =GSltCust*G33 -> 9577504.998 | O33: 3203846.805
A34: 2011-09-01 | B34: 2758253 | C34: 72.85 | D34: 24.35 | E34: 30 | F34: 1 | G34: 1673 | I34: =const -> -9137273.019 | J34: =HDD_Lond*C34 -> 63589.1832 | K34: =CDD_Lond*D34 -> 116070.5928 | L34: =MonthDays*E34 -> 2310057.318 | M34: =Shoulder1*F34 -> -166600.1397 | N34: =GSltCust*G34 -> 9560361.493 | O34: =SUM(I34:N34) -> 2746205.428
A35: 2011-10-01 | B35: 2745121 | C35: 241.64 | D35: 3.42 | E35: 31 | F35: 1 | G35: 1670 | I35: =const -> -9137273.019 | J35: =HDD_Lond*C35 -> 210922.3093 | K35: =CDD_Lond*D35 -> 16302.31734 | L35: =MonthDays*E35 -> 2387059.229 | M35: =Shoulder1*F35 -> -166600.1397 | N35: =GSltCust*G35 -> 9543217.987 | O35: 2853628.684
A36: 2011-11-01 | B36: 2834235 | C36: 414.34 | D36: 0 | E36: 30 | F36: 1 | G36: 1667 | I36: =const -> -9137273.019 | J36: =HDD_Lond*C36 -> 361668.3894 | K36: =CDD_Lond*D36 -> 0 | L36: =MonthDays*E36 -> 2310057.318 | M36: =Shoulder1*F36 -> -166600.1397 | N36: =GSltCust*G36 -> 9526074.482 | O36: 2893927.031
A37: 2011-12-01 | B37: 3149387 | C37: 630.9 | D37: 0 | E37: 31 | F37: 0 | G37: 1664 | I37: =const -> -9137273.019 | J37: =HDD_Lond*C37 -> 550698.9112 | K37: =CDD_Lond*D37 -> 0 | L37: =MonthDays*E37 -> 2387059.229 | M37: =Shoulder1*F37 -> 0 | N37: =GSltCust*G37 -> 9508930.977 | O37: 3309416.097
A38: 2012-01-01 | B38: 3281279 | C38: 716.23 | D38: 0 | E38: 31 | F38: 0 | G38: 1666 | I38: =const -> -9137273.019 | J38: =HDD_Lond*C38 -> 625181.6154 | K38: =CDD_Lond*D38 -> 0 | L38: =MonthDays*E38 -> 2387059.229 | M38: =Shoulder1*F38 -> 0 | N38: =GSltCust*G38 -> 9520359.98 | O38: 3395327.805
A39: 2012-02-01 | B39: 3046678 | C39: 650.25 | D39: 0 | E39: 29 | F39: 0 | G39: 1667 | I39: =const -> -9137273.019 | J39: =HDD_Lond*C39 -> 567589.1061 | K39: =CDD_Lond*D39 -> 0 | L39: =MonthDays*E39 -> 2233055.408 | M39: =Shoulder1*F39 -> 0 | N39: =GSltCust*G39 -> 9526074.482 | O39: 3189445.976
A40: 2012-03-01 | B40: 2970504 | C40: 533.91 | D40: 0.22 | E40: 31 | F40: 1 | G40: 1667 | I40: =const -> -9137273.019 | J40: =HDD_Lond*C40 -> 466038.4462 | K40: =CDD_Lond*D40 -> 1048.687081 | L40: =MonthDays*E40 -> 2387059.229 | M40: =Shoulder1*F40 -> -166600.1397 | N40: =GSltCust*G40 -> 9526074.482 | O40: 3076347.685
A41: 2012-04-01 | B41: 2680293 | C41: 312.88 | D41: 0.32 | E41: 30 | F41: 1 | G41: 1667 | I41: =const -> -9137273.019 | J41: =HDD_Lond*C41 -> 273106.1584 | K41: =CDD_Lond*D41 -> 1525.363026 | L41: =MonthDays*E41 -> 2310057.318 | M41: =Shoulder1*F41 -> -166600.1397 | N41: =GSltCust*G41 -> 9526074.482 | O41: 2806890.163
A42: 2012-05-01 | B42: 2807502 | C42: 145.96 | D42: 16.98 | E42: 31 | F42: 1 | G42: 1667 | I42: =const -> -9137273.019 | J42: =HDD_Lond*C42 -> 127405.3148 | K42: =CDD_Lond*D42 -> 80939.57559 | L42: =MonthDays*E42 -> 2387059.229 | M42: =Shoulder1*F42 -> -166600.1397 | N42: =GSltCust*G42 -> 9526074.482 | O42: 2817605.442
A43: 2012-06-01 | B43: 3105876 | C43: 30.95 | D43: 59.64 | E43: 30 | F43: 0 | G43: 1669 | I43: =const -> -9137273.019 | J43: =HDD_Lond*C43 -> 27015.58298 | K43: =CDD_Lond*D43 -> 284289.5341 | L43: =MonthDays*E43 -> 2310057.318 | M43: =Shoulder1*F43 -> 0 | N43: =GSltCust*G43 -> 9537503.486 | O43: 3021592.901
A44: 2012-07-01 | B44: 3478171 | C44: 6 | D44: 109.95 | E44: 31 | F44: 0 | G44: 1654 | I44: =const -> -9137273.019 | J44: =HDD_Lond*C44 -> 5237.269722 | K44: =CDD_Lond*D44 -> 524105.2024 | L44: =MonthDays*E44 -> 2387059.229 | M44: =Shoulder1*F44 -> 0 | N44: =GSltCust*G44 -> 9451785.959 | O44: 3230914.64
A45: 2012-08-01 | B45: 3240724 | C45: 11.72 | D45: 76.85 | E45: 31 | F45: 0 | G45: 1660 | I45: =const -> -9137273.019 | J45: =HDD_Lond*C45 -> 10230.13352 | K45: =CDD_Lond*D45 -> 366325.4643 | L45: =MonthDays*E45 -> 2387059.229 | M45: =Shoulder1*F45 -> 0 | N45: =GSltCust*G45 -> 9486072.97 | O45: 3112414.777
A46: 2012-09-01 | B46: 2834667 | C46: 72.85 | D46: 24.35 | E46: 30 | F46: 1 | G46: 1651 | I46: =const -> -9137273.019 | J46: =HDD_Lond*C46 -> 63589.1832 | K46: =CDD_Lond*D46 -> 116070.5928 | L46: =MonthDays*E46 -> 2310057.318 | M46: =Shoulder1*F46 -> -166600.1397 | N46: =GSltCust*G46 -> 9434642.453 | O46: 2620486.389
A47: 2012-10-01 | B47: 2761045 | C47: 241.64 | D47: 3.42 | E47: 31 | F47: 1 | G47: 1659 | I47: =const -> -9137273.019 | J47: =HDD_Lond*C47 -> 210922.3093 | K47: =CDD_Lond*D47 -> 16302.31734 | L47: =MonthDays*E47 -> 2387059.229 | M47: =Shoulder1*F47 -> -166600.1397 | N47: =GSltCust*G47 -> 9480358.468 | O47: 2790769.164
A48: 2012-11-01 | B48: 2908932 | C48: 414.34 | D48: 0 | E48: 30 | F48: 1 | G48: 1659 | I48: =const -> -9137273.019 | J48: =HDD_Lond*C48 -> 361668.3894 | K48: =CDD_Lond*D48 -> 0 | L48: =MonthDays*E48 -> 2310057.318 | M48: =Shoulder1*F48 -> -166600.1397 | N48: =GSltCust*G48 -> 9480358.468 | O48: 2848211.016
A49: 2012-12-01 | B49: 3144594 | C49: 630.9 | D49: 0 | E49: 31 | F49: 0 | G49: 1658 | I49: =const -> -9137273.019 | J49: =HDD_Lond*C49 -> 550698.9112 | K49: =CDD_Lond*D49 -> 0 | L49: =MonthDays*E49 -> 2387059.229 | M49: =Shoulder1*F49 -> 0 | N49: =GSltCust*G49 -> 9474643.966 | O49: 3275129.087
A50: 2013-01-01 | B50: 3333526.67 | C50: 716.23 | D50: 0 | E50: 31 | F50: 0 | G50: 1664 | I50: =const -> -9137273.019 | J50: =HDD_Lond*C50 -> 625181.6154 | K50: =CDD_Lond*D50 -> 0 | L50: =MonthDays*E50 -> 2387059.229 | M50: =Shoulder1*F50 -> 0 | N50: =GSltCust*G50 -> 9508930.977 | O50: 3383898.801
A51: 2013-02-01 | B51: 3075889.31 | C51: 650.25 | D51: 0 | E51: 28 | F51: 0 | G51: 1663 | I51: =const -> -9137273.019 | J51: =HDD_Lond*C51 -> 567589.1061 | K51: =CDD_Lond*D51 -> 0 | L51: =MonthDays*E51 -> 2156053.497 | M51: =Shoulder1*F51 -> 0 | N51: =GSltCust*G51 -> 9503216.475 | O51: 3089586.058
A52: 2013-03-01 | B52: 3220272.92 | C52: 533.91 | D52: 0.22 | E52: 31 | F52: 1 | G52: 1663 | I52: =const -> -9137273.019 | J52: =HDD_Lond*C52 -> 466038.4462 | K52: =CDD_Lond*D52 -> 1048.687081 | L52: =MonthDays*E52 -> 2387059.229 | M52: =Shoulder1*F52 -> -166600.1397 | N52: =GSltCust*G52 -> 9503216.475 | O52: 3053489.678
A53: 2013-04-01 | B53: 2945784.67 | C53: 312.88 | D53: 0.32 | E53: 30 | F53: 1 | G53: 1693 | I53: =const -> -9137273.019 | J53: =HDD_Lond*C53 -> 273106.1584 | K53: =CDD_Lond*D53 -> 1525.363026 | L53: =MonthDays*E53 -> 2310057.318 | M53: =Shoulder1*F53 -> -166600.1397 | N53: =GSltCust*G53 -> 9674651.529 | O53: 2955467.209
A54: 2013-05-01 | B54: 3078779.21 | C54: 145.96 | D54: 16.98 | E54: 31 | F54: 1 | G54: 1713 | I54: =const -> -9137273.019 | J54: =HDD_Lond*C54 -> 127405.3148 | K54: =CDD_Lond*D54 -> 80939.57559 | L54: =MonthDays*E54 -> 2387059.229 | M54: =Shoulder1*F54 -> -166600.1397 | N54: =GSltCust*G54 -> 9788941.564 | O54: 3080472.524
A55: 2013-06-01 | B55: 3203064.92 | C55: 30.95 | D55: 59.64 | E55: 30 | F55: 0 | G55: 1714 | I55: =const -> -9137273.019 | J55: =HDD_Lond*C55 -> 27015.58298 | K55: =CDD_Lond*D55 -> 284289.5341 | L55: =MonthDays*E55 -> 2310057.318 | M55: =Shoulder1*F55 -> 0 | N55: =GSltCust*G55 -> 9794656.066 | O55: 3278745.482
A56: 2013-07-01 | B56: 3624763.52 | C56: 6 | D56: 109.95 | E56: 31 | F56: 0 | G56: 1715 | I56: =const -> -9137273.019 | J56: =HDD_Lond*C56 -> 5237.269722 | K56: =CDD_Lond*D56 -> 524105.2024 | L56: =MonthDays*E56 -> 2387059.229 | M56: =Shoulder1*F56 -> 0 | N56: =GSltCust*G56 -> 9800370.568 | O56: 3579499.249
A57: 2013-08-01 | B57: 3384970.79 | C57: 11.72 | D57: 76.85 | E57: 31 | F57: 0 | G57: 1716 | I57: =const -> -9137273.019 | J57: =HDD_Lond*C57 -> 10230.13352 | K57: =CDD_Lond*D57 -> 366325.4643 | L57: =MonthDays*E57 -> 2387059.229 | M57: =Shoulder1*F57 -> 0 | N57: =GSltCust*G57 -> 9806085.07 | O57: 3432426.877
A58: 2013-09-01 | B58: 3137884.18 | C58: 72.85 | D58: 24.35 | E58: 30 | F58: 1 | G58: 1718 | I58: =const -> -9137273.019 | J58: =HDD_Lond*C58 -> 63589.1832 | K58: =CDD_Lond*D58 -> 116070.5928 | L58: =MonthDays*E58 -> 2310057.318 | M58: =Shoulder1*F58 -> -166600.1397 | N58: =GSltCust*G58 -> 9817514.073 | O58: 3003358.008
A59: 2013-10-01 | B59: 3072349.99 | C59: 241.64 | D59: 3.42 | E59: 31 | F59: 1 | G59: 1719 | I59: =const -> -9137273.019 | J59: =HDD_Lond*C59 -> 210922.3093 | K59: =CDD_Lond*D59 -> 16302.31734 | L59: =MonthDays*E59 -> 2387059.229 | M59: =Shoulder1*F59 -> -166600.1397 | N59: =GSltCust*G59 -> 9823228.575 | O59: 3133639.271
A60: 2013-11-01 | B60: 3250425.95 | C60: 414.34 | D60: 0 | E60: 30 | F60: 1 | G60: 1721 | I60: =const -> -9137273.019 | J60: =HDD_Lond*C60 -> 361668.3894 | K60: =CDD_Lond*D60 -> 0 | L60: =MonthDays*E60 -> 2310057.318 | M60: =Shoulder1*F60 -> -166600.1397 | N60: =GSltCust*G60 -> 9834657.579 | O60: 3202510.127
A61: 2013-12-01 | B61: 3647170.11 | C61: 630.9 | D61: 0 | E61: 31 | F61: 0 | G61: 1720 | I61: =const -> -9137273.019 | J61: =HDD_Lond*C61 -> 550698.9112 | K61: =CDD_Lond*D61 -> 0 | L61: =MonthDays*E61 -> 2387059.229 | M61: =Shoulder1*F61 -> 0 | N61: =GSltCust*G61 -> 9828943.077 | O61: 3629428.197
A62: 2014-01-01 | C62: 716.23 | D62: 0 | E62: 31 | F62: 0 | G62: 1719 | I62: =const -> -9137273.019 | J62: =HDD_Lond*C62 -> 625181.6154 | K62: =CDD_Lond*D62 -> 0 | L62: =MonthDays*E62 -> 2387059.229 | M62: =Shoulder1*F62 -> 0 | N62: =GSltCust*G62 -> 9823228.575 | O62: 3698196.4
A63: 2014-02-01 | C63: 650.25 | D63: 0 | E63: 28 | F63: 0 | G63: 1722 | I63: =const -> -9137273.019 | J63: =HDD_Lond*C63 -> 567589.1061 | K63: =CDD_Lond*D63 -> 0 | L63: =MonthDays*E63 -> 2156053.497 | M63: =Shoulder1*F63 -> 0 | N63: =GSltCust*G63 -> 9840372.08 | O63: 3426741.664
A64: 2014-03-01 | C64: 533.91 | D64: 0.22 | E64: 31 | F64: 1 | G64: 1722 | I64: =const -> -9137273.019 | J64: =HDD_Lond*C64 -> 466038.4462 | K64: =CDD_Lond*D64 -> 1048.687081 | L64: =MonthDays*E64 -> 2387059.229 | M64: =Shoulder1*F64 -> -166600.1397 | N64: =GSltCust*G64 -> 9840372.08 | O64: 3390645.283
A65: 2014-04-01 | C65: 312.88 | D65: 0.32 | E65: 30 | F65: 1 | G65: 1729 | I65: =const -> -9137273.019 | J65: =HDD_Lond*C65 -> 273106.1584 | K65: =CDD_Lond*D65 -> 1525.363026 | L65: =MonthDays*E65 -> 2310057.318 | M65: =Shoulder1*F65 -> -166600.1397 | N65: =GSltCust*G65 -> 9880373.593 | O65: 3161189.273
A66: 2014-05-01 | C66: 145.96 | D66: 16.98 | E66: 31 | F66: 1 | G66: 1733 | I66: =const -> -9137273.019 | J66: =HDD_Lond*C66 -> 127405.3148 | K66: =CDD_Lond*D66 -> 80939.57559 | L66: =MonthDays*E66 -> 2387059.229 | M66: =Shoulder1*F66 -> -166600.1397 | N66: =GSltCust*G66 -> 9903231.6 | O66: =SUM(I66:N66) -> 3194762.56
A67: 2014-06-01 | C67: 30.95 | D67: 59.64 | E67: 30 | F67: 0 | G67: 1734 | I67: =const -> -9137273.019 | J67: =HDD_Lond*C67 -> 27015.58298 | K67: =CDD_Lond*D67 -> 284289.5341 | L67: =MonthDays*E67 -> 2310057.318 | M67: =Shoulder1*F67 -> 0 | N67: =GSltCust*G67 -> 9908946.102 | O67: 3393035.518
A68: 2014-07-01 | C68: 6 | D68: 109.95 | E68: 31 | F68: 0 | G68: 1729 | I68: =const -> -9137273.019 | J68: =HDD_Lond*C68 -> 5237.269722 | K68: =CDD_Lond*D68 -> 524105.2024 | L68: =MonthDays*E68 -> 2387059.229 | M68: =Shoulder1*F68 -> 0 | N68: =GSltCust*G68 -> 9880373.593 | O68: 3659502.274
A69: 2014-08-01 | C69: 11.72 | D69: 76.85 | E69: 31 | F69: 0 | G69: 1731 | I69: =const -> -9137273.019 | J69: =HDD_Lond*C69 -> 10230.13352 | K69: =CDD_Lond*D69 -> 366325.4643 | L69: =MonthDays*E69 -> 2387059.229 | M69: =Shoulder1*F69 -> 0 | N69: =GSltCust*G69 -> 9891802.597 | O69: 3518144.404
A70: 2014-09-01 | C70: 72.85 | D70: 24.35 | E70: 30 | F70: 1 | G70: 1730 | I70: =const -> -9137273.019 | J70: =HDD_Lond*C70 -> 63589.1832 | K70: =CDD_Lond*D70 -> 116070.5928 | L70: =MonthDays*E70 -> 2310057.318 | M70: =Shoulder1*F70 -> -166600.1397 | N70: =GSltCust*G70 -> 9886088.095 | O70: 3071932.03
A71: 2014-10-01 | C71: 241.64 | D71: 3.42 | E71: 31 | F71: 1 | G71: 1731 | I71: =const -> -9137273.019 | J71: =HDD_Lond*C71 -> 210922.3093 | K71: =CDD_Lond*D71 -> 16302.31734 | L71: =MonthDays*E71 -> 2387059.229 | M71: =Shoulder1*F71 -> -166600.1397 | N71: =GSltCust*G71 -> 9891802.597 | O71: 3202213.293
A72: 2014-11-01 | C72: 414.34 | D72: 0 | E72: 30 | F72: 1 | G72: 1732 | I72: =const -> -9137273.019 | J72: =HDD_Lond*C72 -> 361668.3894 | K72: =CDD_Lond*D72 -> 0 | L72: =MonthDays*E72 -> 2310057.318 | M72: =Shoulder1*F72 -> -166600.1397 | N72: =GSltCust*G72 -> 9897517.098 | O72: 3265369.647
A73: 2014-12-01 | C73: 630.9 | D73: 0 | E73: 31 | F73: 0 | G73: 1729 | I73: =const -> -9137273.019 | J73: =HDD_Lond*C73 -> 550698.9112 | K73: =CDD_Lond*D73 -> 0 | L73: =MonthDays*E73 -> 2387059.229 | M73: =Shoulder1*F73 -> 0 | N73: =GSltCust*G73 -> 9880373.593 | O73: 3680858.714
A74: 2015-01-01 | C74: 716.23 | D74: 0 | E74: 31 | F74: 0 | G74: 1727 | I74: =const -> -9137273.019 | J74: =HDD_Lond*C74 -> 625181.6154 | K74: =CDD_Lond*D74 -> 0 | L74: =MonthDays*E74 -> 2387059.229 | M74: =Shoulder1*F74 -> 0 | N74: =GSltCust*G74 -> 9868944.589 | O74: 3743912.414
A75: 2015-02-01 | C75: 650.25 | D75: 0 | E75: 28 | F75: 0 | G75: 1730 | I75: =const -> -9137273.019 | J75: =HDD_Lond*C75 -> 567589.1061 | K75: =CDD_Lond*D75 -> 0 | L75: =MonthDays*E75 -> 2156053.497 | M75: =Shoulder1*F75 -> 0 | N75: =GSltCust*G75 -> 9886088.095 | O75: 3472457.678
A76: 2015-03-01 | C76: 533.91 | D76: 0.22 | E76: 31 | F76: 1 | G76: 1730 | I76: =const -> -9137273.019 | J76: =HDD_Lond*C76 -> 466038.4462 | K76: =CDD_Lond*D76 -> 1048.687081 | L76: =MonthDays*E76 -> 2387059.229 | M76: =Shoulder1*F76 -> -166600.1397 | N76: =GSltCust*G76 -> 9886088.095 | O76: 3436361.298
A77: 2015-04-01 | C77: 312.88 | D77: 0.32 | E77: 30 | F77: 1 | G77: 1738 | I77: =const -> -9137273.019 | J77: =HDD_Lond*C77 -> 273106.1584 | K77: =CDD_Lond*D77 -> 1525.363026 | L77: =MonthDays*E77 -> 2310057.318 | M77: =Shoulder1*F77 -> -166600.1397 | N77: =GSltCust*G77 -> 9931804.109 | O77: 3212619.79
A78: 2015-05-01 | C78: 145.96 | D78: 16.98 | E78: 31 | F78: 1 | G78: 1742 | I78: =const -> -9137273.019 | J78: =HDD_Lond*C78 -> 127405.3148 | K78: =CDD_Lond*D78 -> 80939.57559 | L78: =MonthDays*E78 -> 2387059.229 | M78: =Shoulder1*F78 -> -166600.1397 | N78: =GSltCust*G78 -> 9954662.116 | O78: 3246193.076
A79: 2015-06-01 | C79: 30.95 | D79: 59.64 | E79: 30 | F79: 0 | G79: 1743 | I79: =const -> -9137273.019 | J79: =HDD_Lond*C79 -> 27015.58298 | K79: =CDD_Lond*D79 -> 284289.5341 | L79: =MonthDays*E79 -> 2310057.318 | M79: =Shoulder1*F79 -> 0 | N79: =GSltCust*G79 -> 9960376.618 | O79: 3444466.034
A80: 2015-07-01 | C80: 6 | D80: 109.95 | E80: 31 | F80: 0 | G80: 1738 | I80: =const -> -9137273.019 | J80: =HDD_Lond*C80 -> 5237.269722 | K80: =CDD_Lond*D80 -> 524105.2024 | L80: =MonthDays*E80 -> 2387059.229 | M80: =Shoulder1*F80 -> 0 | N80: =GSltCust*G80 -> 9931804.109 | O80: 3710932.79
A81: 2015-08-01 | C81: 11.72 | D81: 76.85 | E81: 31 | F81: 0 | G81: 1739 | I81: =const -> -9137273.019 | J81: =HDD_Lond*C81 -> 10230.13352 | K81: =CDD_Lond*D81 -> 366325.4643 | L81: =MonthDays*E81 -> 2387059.229 | M81: =Shoulder1*F81 -> 0 | N81: =GSltCust*G81 -> 9937518.611 | O81: 3563860.418
A82: 2015-09-01 | C82: 72.85 | D82: 24.35 | E82: 30 | F82: 1 | G82: 1739 | I82: =const -> -9137273.019 | J82: =HDD_Lond*C82 -> 63589.1832 | K82: =CDD_Lond*D82 -> 116070.5928 | L82: =MonthDays*E82 -> 2310057.318 | M82: =Shoulder1*F82 -> -166600.1397 | N82: =GSltCust*G82 -> 9937518.611 | O82: 3123362.546
A83: 2015-10-01 | C83: 241.64 | D83: 3.42 | E83: 31 | F83: 1 | G83: 1739 | I83: =const -> -9137273.019 | J83: =HDD_Lond*C83 -> 210922.3093 | K83: =CDD_Lond*D83 -> 16302.31734 | L83: =MonthDays*E83 -> 2387059.229 | M83: =Shoulder1*F83 -> -166600.1397 | N83: =GSltCust*G83 -> 9937518.611 | O83: 3247929.307
A84: 2015-11-01 | C84: 414.34 | D84: 0 | E84: 30 | F84: 1 | G84: 1741 | I84: =const -> -9137273.019 | J84: =HDD_Lond*C84 -> 361668.3894 | K84: =CDD_Lond*D84 -> 0 | L84: =MonthDays*E84 -> 2310057.318 | M84: =Shoulder1*F84 -> -166600.1397 | N84: =GSltCust*G84 -> 9948947.614 | O84: 3316800.163
A85: 2015-12-01 | C85: 630.9 | D85: 0 | E85: 31 | F85: 0 | G85: 1737 | I85: =const -> -9137273.019 | J85: =HDD_Lond*C85 -> 550698.9112 | K85: =CDD_Lond*D85 -> 0 | L85: =MonthDays*E85 -> 2387059.229 | M85: =Shoulder1*F85 -> 0 | N85: =GSltCust*G85 -> 9926089.607 | O85: 3726574.728

Sheet Normalized Monthly Data Summ
A1: Date | B1: Year | C1: GSlt50kWh | D1: Normalized Value
A2: 2009-01-01 | B2: =YEAR(A2) -> 2009 | C2: 3760655 | D2: 3441043.819
A3: 2009-02-01 | B3: 2009 | C3: 3270545 | D3: 3158160.08
A4: 2009-03-01 | B4: 2009 | C4: 3315389 | D4: 3156350.71
A5: 2009-04-01 | B5: 2009 | C5: 2905547 | D5: 2904036.693
A6: 2009-05-01 | B6: 2009 | C6: 2858350 | D6: 2920466.474
A7: 2009-06-01 | B7: 2009 | C7: 2907459 | D7: 3113024.93
A8: 2009-07-01 | B8: 2009 | C8: 3152443 | D8: 3408064.196
A9: 2009-08-01 | B9: 2009 | C9: 3252321 | D9: 3255277.321
A10: 2009-09-01 | B10: 2009 | C10: 2873707 | D10: 2814779.449
A11: 2009-10-01 | B11: 2009 | C11: 2845616 | D11: 2939346.211
A12: 2009-11-01 | B12: 2009 | C12: 2894664 | D12: 2996788.063
A13: 2009-12-01 | B13: 2009 | C13: 3352350 | D13: 3366561.115
A14: 2010-01-01 | B14: 2010 | C14: 3441514 | D14: 3441043.819
A15: 2010-02-01 | B15: 2010 | C15: 3109778 | D15: 3152445.578
A16: 2010-03-01 | B16: 2010 | C16: 3063802 | D16: 3116349.198
A17: 2010-04-01 | B17: 2010 | C17: 2760595 | D17: 2852606.177
A18: 2010-05-01 | B18: 2010 | C18: 2903907 | D18: 2846177.951
A19: 2010-06-01 | B19: 2010 | C19: 3063123 | D19: 3021592.901
A20: 2010-07-01 | B20: 2010 | C20: 3367995 | D20: 3299488.662
A21: 2010-08-01 | B21: 2010 | C21: 3264268 | D21: 3135272.784
A22: 2010-09-01 | B22: 2010 | C22: 2788591 | D22: 2740490.926
A23: 2010-10-01 | B23: 2010 | C23: 2730965 | D23: 2842199.68
A24: 2010-11-01 | B24: 2010 | C24: 2916635 | D24: 2939643.045
A25: 2010-12-01 | B25: 2010 | C25: 3326888 | D25: 3326559.603
A26: 2011-01-01 | B26: 2011 | C26: 3480300 | D26: 3389613.303
A27: 2011-02-01 | B27: 2011 | C27: 3140091 | D27: 3169589.084
A28: 2011-03-01 | B28: 2011 | C28: 3198659 | D28: 3133492.703
A29: 2011-04-01 | B29: 2011 | C29: 2806404 | D29: 2852606.177
A30: 2011-05-01 | B30: 2011 | C30: 2777768 | D30: 2857606.955
A31: 2011-06-01 | B31: 2011 | C31: 2996203 | D31: 3073023.418
A32: 2011-07-01 | B32: 2011 | C32: 3463081 | D32: 3356633.68
A33: 2011-08-01 | B33: 2011 | C33: 3314369 | D33: 3203846.805
A34: 2011-09-01 | B34: =YEAR(A34) -> 2011 | C34: 2758253 | D34: 2746205.428
A35: 2011-10-01 | B35: 2011 | C35: 2745121 | D35: 2853628.684
A36: 2011-11-01 | B36: 2011 | C36: 2834235 | D36: 2893927.031
A37: 2011-12-01 | B37: 2011 | C37: 3149387 | D37: 3309416.097
A38: 2012-01-01 | B38: 2012 | C38: 3281279 | D38: 3395327.805
A39: 2012-02-01 | B39: 2012 | C39: 3046678 | D39: 3189445.976
A40: 2012-03-01 | B40: 2012 | C40: 2970504 | D40: 3076347.685
A41: 2012-04-01 | B41: 2012 | C41: 2680293 | D41: 2806890.163
A42: 2012-05-01 | B42: 2012 | C42: 2807502 | D42: 2817605.442
A43: 2012-06-01 | B43: 2012 | C43: 3105876 | D43: 3021592.901
A44: 2012-07-01 | B44: 2012 | C44: 3478171 | D44: 3230914.64
A45: 2012-08-01 | B45: 2012 | C45: 3240724 | D45: 3112414.777
A46: 2012-09-01 | B46: 2012 | C46: 2834667 | D46: 2620486.389
A47: 2012-10-01 | B47: 2012 | C47: 2761045 | D47: 2790769.164
A48: 2012-11-01 | B48: 2012 | C48: 2908932 | D48: 2848211.016
A49: 2012-12-01 | B49: 2012 | C49: 3144594 | D49: 3275129.087
A50: 2013-01-01 | B50: 2013 | C50: 3333526.67 | D50: 3383898.801
A51: 2013-02-01 | B51: 2013 | C51: 3075889.31 | D51: 3089586.058
A52: 2013-03-01 | B52: 2013 | C52: 3220272.92 | D52: 3053489.678
A53: 2013-04-01 | B53: 2013 | C53: 2945784.67 | D53: 2955467.209
A54: 2013-05-01 | B54: 2013 | C54: 3078779.21 | D54: 3080472.524
A55: 2013-06-01 | B55: 2013 | C55: 3203064.92 | D55: 3278745.482
A56: 2013-07-01 | B56: 2013 | C56: 3624763.52 | D56: 3579499.249
A57: 2013-08-01 | B57: 2013 | C57: 3384970.79 | D57: 3432426.877
A58: 2013-09-01 | B58: 2013 | C58: 3137884.18 | D58: 3003358.008
A59: 2013-10-01 | B59: 2013 | C59: 3072349.99 | D59: 3133639.271
A60: 2013-11-01 | B60: 2013 | C60: 3250425.95 | D60: 3202510.127
A61: 2013-12-01 | B61: 2013 | C61: 3647170.11 | D61: 3629428.197
A62: 2014-01-01 | B62: 2014 | D62: 3698196.4
A63: 2014-02-01 | B63: 2014 | D63: 3426741.664
A64: 2014-03-01 | B64: 2014 | D64: 3390645.283
A65: 2014-04-01 | B65: 2014 | D65: 3161189.273
A66: 2014-05-01 | B66: =YEAR(A66) -> 2014 | D66: 3194762.56
A67: 2014-06-01 | B67: 2014 | D67: 3393035.518
A68: 2014-07-01 | B68: 2014 | D68: 3659502.274
A69: 2014-08-01 | B69: 2014 | D69: 3518144.404
A70: 2014-09-01 | B70: 2014 | D70: 3071932.03
A71: 2014-10-01 | B71: 2014 | D71: 3202213.293
A72: 2014-11-01 | B72: 2014 | D72: 3265369.647
A73: 2014-12-01 | B73: 2014 | D73: 3680858.714
A74: 2015-01-01 | B74: 2015 | D74: 3743912.414
A75: 2015-02-01 | B75: 2015 | D75: 3472457.678
A76: 2015-03-01 | B76: 2015 | D76: 3436361.298
A77: 2015-04-01 | B77: 2015 | D77: 3212619.79
A78: 2015-05-01 | B78: 2015 | D78: 3246193.076
A79: 2015-06-01 | B79: 2015 | D79: 3444466.034
A80: 2015-07-01 | B80: 2015 | D80: 3710932.79
A81: 2015-08-01 | B81: 2015 | D81: 3563860.418
A82: 2015-09-01 | B82: 2015 | D82: 3123362.546
A83: 2015-10-01 | B83: 2015 | D83: 3247929.307
A84: 2015-11-01 | B84: 2015 | D84: 3316800.163
A85: 2015-12-01 | B85: 2015 | D85: 3726574.728

Sheet NormalizedAnnualDataSumm
A2: Annual Actual vs. Normalized GSlt50kWh
B3: GSlt50kWh | C3: Normalized Value
A4: 2009 | B4: 37389046 | C4: 37473899.06
A5: 2010 | B5: 36738061 | C5: 36713870.32
A6: 2011 | B6: 36663871 | C6: 36839589.36
A7: 2012 | B7: 36260265 | C7: 36185135.04
A8: 2013 | B8: 38974882.24 | C8: 38822521.48
A9: 2014 | C9: 40662591.06
A10: 2015 | C10: 41245470.24

Sheet NormalizedAnnualDataSumm2
A2: Annual Actual vs. Normalized GSlt50kWh
B3: GSlt50kWh | C3: % Change | D3: Normalized Value | E3: % Change
A4: 2009 | B4: 37389046 | D4: 37473899.06
A5: 2010 | B5: 36738061 | C5: =B5/B4-1 -> -0.01741111554 | D5: 36713870.32 | E5: =D5/D4-1 -> -0.02028154948
A6: 2011 | B6: 36663871 | C6: =B6/B5-1 -> -0.002019431564 | D6: 36839589.36 | E6: =D6/D5-1 -> 0.003424292733
A7: 2012 | B7: 36260265 | C7: -0.01100827569 | D7: 36185135.04 | E7: -0.01776497322
A8: 2013 | B8: 38974882.24 | C8: 0.07486479318 | D8: 38822521.48 | E8: 0.07288590842
A9: 2014 | D9: 40662591.06 | E9: 0.04739696201
A10: 2015 | D10: 41245470.24 | E10: 0.01433453126
